[Event "SVK Extraliga 2019-20"]
[Site "Slovakia"]
[Date "2019.10.20"]
[Round "1.3"]
[White "Kozak, Adam"]
[Black "Rohacek, Miroslav"]
[Result "1-0"]
[ECO "A09"]
[WhiteElo "2512"]
[BlackElo "2222"]
[Annotator "ChessBase"]
[PlyCount "67"]
[EventDate "2019.10.19"]
[EventType "team-tourn"]
[EventCountry "SVK"]
[SourceTitle "playchess.com"]
[Source "ChessBase"]
[SourceQuality "1"]
[WhiteTeam "Modra"]
[BlackTeam "Bratislava"]
[WhiteTeamCountry "HUN"]
[BlackTeamCountry "SVK"]
[TimeControl "40/5400+30:1800+30"]

1. Nf3 {[%emt 0:00:00]} d5 {[%emt 0:00:01]} 2. c4 {[%emt 0:00:12]} d4 {[%emt 0:01:21]} 3. b4 {[%emt 0:00:13]} c5 {[%emt 0:01:10]} 4. g3 {[%emt 0:05:55]} cxb4 {[%emt 0:02:42]} 5. a3 {[%emt 0:04:02]} b3 {[%emt 0:04:33]} 6. Qxb3 {[%emt 0:00:36]} Nc6 {[%emt 0:00:14]} 7. Bg2 {[%emt 0:02:41]} Nf6 {[%emt 0:03:57]} 8. O-O {[%emt 0:01:51]} e5 {[%emt 0:07:03]} 9. d3 {[%emt 0:14:47]} Be7 {[%emt 0:00:44]} 10. Bg5 {[%emt 0:01:43]} Nd7 {[%emt 0:03:30]} 11. Bxe7 {[%emt 0:01:07]} Qxe7 {[%emt 0:00:09]} 12. Nbd2 {[%emt 0:01:40]} Nc5 {[%emt 0:02:49]} 13. Qb5 {[%emt 0:03:39]} Bd7 {[%emt 0:04:54]} 14. Nb3 {[%emt 0:04:01]} Nxb3 {[%emt 0:04:40]} 15. Qxb3 {[%emt 0:00:00]} b6 {[%emt 0:04:14]} 16. Ne1 {[%emt 0:01:51]} Rc8 {[%emt 0:03:49]} 17. Nc2 {[%emt 0:00:52]} O-O {[%emt 0:06:06]} 18. Rfe1 {[%emt 0:09:04]} Qc5 {[%emt 0:03:47]} 19. Nb4 {[%emt 0:05:12]} Na5 {[%emt 0:06:31]} 20. Qa2 {[%emt 0:03:49]} Be6 {[%emt 0:02:25]} 21. Qb2 {[%emt 0:03:02]} Rfd8 {[%emt 0:06:10]} 22. Rab1 {[%emt 0:01:29]} Qd6 {[%emt 0:06:51]} 23. Rec1 {[%emt 0:03:30]} h5 {[%emt 0:04:15]} 24. Na6 {[%emt 0:04:03]} Nc6 {[%emt 0:07:54]} 25. c5 {[%emt 0:01:39]} bxc5 {[%emt 0:01:30]} 26. Nxc5 {[%emt 0:00:02]} Ne7 {[%emt 0:02:34]} 27. Nxe6 {[%emt 0:11:21]} Qxe6 {[%emt 0:00:23]} 28. Qb7 {[%emt 0:00:18]} Rxc1+ {[%emt 0:00:45]} 29. Rxc1 {[%emt 0:00:02]} Rd7 {[%emt 0:01:31]} 30. Qb8+ {[%emt 0:04:44]} Kh7 {[%emt 0:00:08]} 31. Rc5 {[%emt 0:00:42]} f6 {[%emt 0:03:25]} 32. Be4+ {[%emt 0:00:55]} g6 {[%emt 0:02:49]} 33. Qe8 {[%emt 0:00:12]} f5 {[%emt 0:01:26]} 34. Rc6 {[%emt 0:00:42]} 1-0

[Event "SVK Extraliga 2019-20"]
[Site "Slovakia"]
[Date "2019.10.19"]
[Round "1.3"]
[White "Jurcik, Marian"]
[Black "Manik, Mikulas"]
[Result "1/2-1/2"]
[ECO "B51"]
[WhiteElo "2486"]
[BlackElo "2371"]
[Annotator "ChessBase"]
[PlyCount "76"]
[EventDate "2019.10.19"]
[EventType "team-tourn"]
[EventCountry "SVK"]
[SourceTitle "playchess.com"]
[Source "ChessBase"]
[SourceQuality "1"]
[WhiteTeam "Zilina"]
[BlackTeam "Prakovce"]
[TimeControl "40/5400+30:1800+30"]

1. e4 {[%emt 0:00:23]} c5 {[%emt 0:00:00]} 2. Nf3 {[%emt 0:00:52]} d6 {[%emt 0:00:07]} 3. Bb5+ {[%emt 0:00:58]} Nd7 {[%emt 0:00:19]} 4. O-O {[%emt 0:01:32]} a6 {[%emt 0:01:08]} 5. Bd3 {[%emt 0:00:15]} Ngf6 {[%emt 0:01:11]} 6. Re1 {[%emt 0:00:46]} e6 {[%emt 0:04:22]} 7. c3 {[%emt 0:01:04]} b5 {[%emt 0:06:32]} 8. Bc2 {[%emt 0:06:33]} Bb7 {[%emt 0:05:43]} 9. d4 {[%emt 0:00:27]} Be7 {[%emt 0:00:52]} 10. Nbd2 {[%emt 0:06:25]} O-O {[%emt 0:18:06]} 11. e5 {[%emt 0:07:49]} dxe5 {[%emt 0:01:30]} 12. dxe5 {[%emt 0:00:17]} Nd5 {[%emt 0:00:11]} 13. Ne4 {[%emt 0:01:23]} c4 {[%emt 0:06:17]} 14. Ng3 {[%emt 0:19:36]} Nc5 {[%emt 0:06:46]} 15. Qd4 {[%emt 0:01:44]} Nd3 {[%emt 0:07:33]} 16. Bxd3 {[%emt 0:01:00]} cxd3 {[%emt 0:00:03]} 17. Qxd3 {[%emt 0:00:50]} Nb6 {[%emt 0:00:09]} 18. Qe2 {[%emt 0:06:34]} Rc8 {[%emt 0:08:02]} 19. Be3 {[%emt 0:04:30]} Na4 {[%emt 0:00:09]} 20. Rad1 {[%emt 0:07:32]} Qc7 {[%emt 0:00:28]} 21. Bd4 {[%emt 0:00:19]} Rfd8 {[%emt 0:04:21]} 22. a3 {[%emt 0:03:37]} Qc6 {[%emt 0:09:34]} 23. Nh5 {[%emt 0:05:41]} Qc4 {[%emt 0:03:41]} 24. Qd2 {[%emt 0:04:23]} Qb3 {[%emt 0:04:21]} 25. Rb1 {[%emt 0:03:48]} a5 {[%emt 0:01:18]} 26. Qf4 {[%emt 0:02:08]} Qc2 {[%emt 0:02:01]} 27. Qg3 {[%emt 0:05:01]} Qg6 {[%emt 0:01:17]} 28. Qh3 {[%emt 0:01:39]} Be4 {[%emt 0:01:53]} 29. Nf4 {[%emt 0:03:16]} Qf5 {[%emt 0:00:01]} 30. Qxf5 {[%emt 0:00:20]} Bxf5 {[%emt 0:00:19]} 31. Ra1 {[%emt 0:00:33]} Nxb2 {[%emt 0:03:43]} 32. Bb6 {[%emt 0:00:01]} Rd7 {[%emt 0:00:45]} 33. Bxa5 {[%emt 0:00:11]} Bc5 {[%emt 0:00:57]} 34. Bb4 {[%emt 0:00:34]} Bb6 {[%emt 0:00:14]} 35. h3 {[%emt 0:04:26]} Na4 {[%emt 0:00:43]} 36. g4 {[%emt 0:00:48]} Bg6 {[%emt 0:02:05]} 37. Kg2 {[%emt 0:00:29]} Nxc3 {[%emt 0:00:59]} 38. Rac1 {[%emt 0:00:27]} Rdc7 1/2-1/2

[Event "SVK Extraliga 2019-20"]
[Site "Slovakia"]
[Date "2019.10.19"]
[Round "1.3"]
[White "Roubalik, Jakub"]
[Black "Ftacnik, Lubomir"]
[Result "0-1"]
[ECO "A45"]
[WhiteElo "2410"]
[BlackElo "2520"]
[Annotator "ChessBase"]
[PlyCount "68"]
[EventDate "2019.10.19"]
[EventType "team-tourn"]
[EventCountry "SVK"]
[SourceTitle "playchess.com"]
[Source "ChessBase"]
[SourceQuality "1"]
[WhiteTeam "Dubnica"]
[BlackTeam "Slovan"]
[TimeControl "40/5400+30:1800+30"]

1. d4 {[%emt 0:00:00]} Nf6 {[%emt 0:00:00]} 2. Bg5 {[%emt 0:00:05]} Ne4 {[%emt 0:05:27]} 3. Bf4 {[%emt 0:00:08]} d5 {[%emt 0:04:41]} 4. e3 {[%emt 0:00:11]} Bf5 {[%emt 0:01:35]} 5. f3 {[%emt 0:00:27]} Nd6 {[%emt 0:01:04]} 6. Nc3 {[%emt 0:09:41]} e6 {[%emt 0:02:58]} 7. Bd3 {[%emt 0:10:09]} Bg6 {[%emt 0:06:56]} 8. Nge2 {[%emt 0:04:37]} Nd7 {[%emt 0:01:57]} 9. e4 {[%emt 0:04:50]} c6 {[%emt 0:04:34]} 10. O-O {[%emt 0:04:10]} Be7 {[%emt 0:03:09]} 11. Kh1 {[%emt 0:03:09]} O-O {[%emt 0:03:15]} 12. Bg3 {[%emt 0:17:53]} dxe4 {[%emt 0:07:12]} 13. fxe4 {[%emt 0:12:00]} c5 {[%emt 0:01:27]} 14. e5 {[%emt 0:00:11]} Nf5 {[%emt 0:00:48]} 15. Bxf5 {[%emt 0:00:51]} Bxf5 {[%emt 0:00:19]} 16. d5 {[%emt 0:00:11]} Bg5 {[%emt 0:15:08]} 17. d6 {[%emt 0:07:17]} Nb6 {[%emt 0:08:06]} 18. b3 {[%emt 0:02:15]} Rc8 {[%emt 0:06:05]} 19. Bf4 {[%emt 0:02:08]} Nd7 {[%emt 0:04:07]} 20. Qd2 {[%emt 0:13:09]} Bxf4 {[%emt 0:09:10]} 21. Qxf4 {[%emt 0:04:22]} Bxc2 {[%emt 0:00:57]} 22. Ng3 {[%emt 0:01:29]} Bg6 {[%emt 0:03:55]} 23. h4 {[%emt 0:01:29]} f6 {[%emt 0:01:40]} 24. h5 {[%emt 0:00:20]} Bd3 {[%emt 0:00:40]} 25. Rfe1 {[%emt 0:00:37]} Nxe5 {[%emt 0:00:58]} 26. Rad1 {[%emt 0:00:13]} c4 {[%emt 0:02:02]} 27. Rxe5 {[%emt 0:00:52]} fxe5 {[%emt 0:00:39]} 28. Qxe5 {[%emt 0:00:02]} Qf6 {[%emt 0:01:58]} 29. Qxf6 {[%emt 0:00:15]} gxf6 {[%emt 0:00:02]} 30. bxc4 {[%emt 0:00:07]} Bxc4 {[%emt 0:00:12]} 31. Nge4 {[%emt 0:00:59]} f5 {[%emt 0:02:11]} 32. Ng5 {[%emt 0:01:21]} Rfd8 {[%emt 0:00:31]} 33. Nf3 {[%emt 0:00:10]} Rc5 {[%emt 0:01:02]} 34. Rd4 {[%emt 0:00:42]} Bd5 {[%emt 0:00:38]} 0-1

[Event "SVK Extraliga 2019-20"]
[Site "Slovakia"]
[Date "2019.10.19"]
[Round "1.3"]
[White "Rigo, Zsolt"]
[Black "Kriebel, Tadeas"]
[Result "1-0"]
[ECO "C84"]
[WhiteElo "2396"]
[BlackElo "2528"]
[Annotator "ChessBase"]
[PlyCount "85"]
[EventDate "2019.10.19"]
[EventType "team-tourn"]
[EventCountry "SVK"]
[SourceTitle "playchess.com"]
[Source "ChessBase"]
[SourceQuality "1"]
[WhiteTeam "Streda"]
[BlackTeam "Humenne"]
[TimeControl "40/5400+30:1800+30"]

1. e4 {[%emt 0:00:00]} e5 {[%emt 0:00:00]} 2. Nf3 {[%emt 0:00:10]} Nc6 {[%emt 0:00:00]} 3. Bb5 {[%emt 0:00:09]} a6 {[%emt 0:00:00]} 4. Ba4 {[%emt 0:00:05]} Nf6 {[%emt 0:00:00]} 5. O-O {[%emt 0:00:41]} Be7 {[%emt 0:00:09]} 6. d3 {[%emt 0:00:16]} b5 {[%emt 0:01:28]} 7. Bb3 {[%emt 0:00:29]} d6 {[%emt 0:00:05]} 8. Bd2 {[%emt 0:06:24]} Bg4 {[%emt 0:11:23]} 9. h3 {[%emt 0:05:20]} Bxf3 {[%emt 0:02:24]} 10. Qxf3 {[%emt 0:00:14]} Nd4 {[%emt 0:00:04]} 11. Qd1 {[%emt 0:01:04]} O-O {[%emt 0:01:50]} 12. Bc3 {[%emt 0:14:33]} Ne6 {[%emt 0:08:52]} 13. a3 {[%emt 0:03:59]} c5 {[%emt 0:00:45]} 14. Re1 {[%emt 0:06:37]} Qb6 {[%emt 0:11:00]} 15. Nd2 {[%emt 0:04:31]} Rfc8 {[%emt 0:25:12]} 16. Ba2 {[%emt 0:20:52]} Qb7 {[%emt 0:00:44]} 17. Nf1 {[%emt 0:00:57]} c4 {[%emt 0:00:46]} 18. Ng3 {[%emt 0:04:02]} g6 {[%emt 0:01:57]} 19. dxc4 {[%emt 0:02:35]} bxc4 {[%emt 0:00:12]} 20. Qe2 {[%emt 0:01:16]} Qc6 {[%emt 0:04:09]} 21. Rad1 {[%emt 0:00:07]} a5 {[%emt 0:01:00]} 22. Nf1 {[%emt 0:02:26]} Nf4 {[%emt 0:08:59]} 23. Qf3 {[%emt 0:00:23]} Nd7 {[%emt 0:00:21]} 24. Ne3 {[%emt 0:03:50]} Nb6 {[%emt 0:00:13]} 25. h4 {[%emt 0:05:59]} Bxh4 {[%emt 0:08:06]} 26. g3 {[%emt 0:00:05]} Nh3+ {[%emt 0:00:05]} 27. Kh2 {[%emt 0:00:34]} Ng5 {[%emt 0:00:42]} 28. Qg2 {[%emt 0:00:39]} Qxe4 {[%emt 0:02:23]} 29. Qxe4 {[%emt 0:03:08]} Bxg3+ {[%emt 0:00:11]} 30. fxg3 {[%emt 0:00:18]} Nxe4 {[%emt 0:00:04]} 31. Nd5 {[%emt 0:01:59]} Nxd5 {[%emt 0:03:01]} 32. Rxe4 {[%emt 0:00:15]} Nf6 {[%emt 0:04:05]} 33. Rxc4 {[%emt 0:04:58]} Rxc4 {[%emt 0:00:08]} 34. Bxc4 {[%emt 0:00:02]} Ng4+ {[%emt 0:00:09]} 35. Kg1 {[%emt 0:00:05]} Ne3 {[%emt 0:00:03]} 36. Bd5 {[%emt 0:00:08]} Rb8 {[%emt 0:00:45]} 37. Rd3 {[%emt 0:01:28]} Nxc2 {[%emt 0:00:13]} 38. Rf3 {[%emt 0:02:07]} Rf8 {[%emt 0:00:48]} 39. Rf6 {[%emt 0:01:33]} Kg7 {[%emt 0:00:40]} 40. Rxd6 {[%emt 0:00:47]} f6 {[%emt 0:00:04]} 41. Bxa5 {[%emt 0:32:23]} Ne3 {[%emt 0:30:11]} 42. Rd7+ {[%emt 0:00:57]} Kh8 {[%emt 0:00:04]} 43. Be6 {[%emt 0:00:54]} 1-0

[Event "SVK Extraliga 2019-20"]
[Site "Slovakia"]
[Date "2019.10.19"]
[Round "1.3"]
[White "Jakab, Bela"]
[Black "Nayhebaver, Martin"]
[Result "0-1"]
[ECO "E29"]
[WhiteElo "2244"]
[BlackElo "2481"]
[Annotator "ChessBase"]
[PlyCount "86"]
[EventDate "2019.10.19"]
[EventType "team-tourn"]
[EventCountry "SVK"]
[SourceTitle "playchess.com"]
[Source "ChessBase"]
[SourceQuality "1"]
[WhiteTeam "Podhajska"]
[BlackTeam "Kosice"]
[TimeControl "40/5400+30:1800+30"]

1. d4 {[%emt 0:00:00]} Nf6 {[%emt 0:00:00]} 2. c4 {[%emt 0:00:00]} e6 {[%emt 0:00:28]} 3. Nc3 {[%emt 0:00:00]} Bb4 {[%emt 0:00:24]} 4. e3 {[%emt 0:00:47]} O-O {[%emt 0:00:44]} 5. Bd3 {[%emt 0:01:19]} c5 {[%emt 0:01:08]} 6. a3 {[%emt 0:02:49]} Bxc3+ {[%emt 0:04:38]} 7. bxc3 {[%emt 0:00:06]} d6 {[%emt 0:00:38]} 8. Nf3 {[%emt 0:02:58]} Nc6 {[%emt 0:01:58]} 9. e4 {[%emt 0:11:55]} cxd4 {[%emt 0:09:31]} 10. cxd4 {[%emt 0:01:02]} e5 {[%emt 0:00:06]} 11. d5 {[%emt 0:11:06]} Nb8 {[%emt 0:05:52]} 12. O-O {[%emt 0:00:24]} Nfd7 {[%emt 0:02:06]} 13. Be3 {[%emt 0:07:55]} Na6 {[%emt 0:00:58]} 14. g3 {[%emt 0:01:54]} Ndc5 {[%emt 0:07:31]} 15. Nh4 {[%emt 0:03:46]} Bh3 {[%emt 0:02:40]} 16. Re1 {[%emt 0:02:27]} Rc8 {[%emt 0:01:02]} 17. f3 {[%emt 0:05:03]} b6 {[%emt 0:03:47]} 18. Ra2 {[%emt 0:07:48]} Rc7 {[%emt 0:07:20]} 19. Rf2 {[%emt 0:02:48]} Re8 {[%emt 0:02:55]} 20. Bc2 {[%emt 0:05:27]} Bc8 {[%emt 0:08:36]} 21. Nf5 {[%emt 0:05:13]} Bxf5 {[%emt 0:07:43]} 22. exf5 {[%emt 0:00:05]} Nb8 {[%emt 0:00:32]} 23. f4 {[%emt 0:02:26]} Nbd7 {[%emt 0:11:33]} 24. fxe5 {[%emt 0:03:10]} Rxe5 {[%emt 0:00:29]} 25. Bd4 {[%emt 0:01:05]} Rxe1+ {[%emt 0:01:23]} 26. Qxe1 {[%emt 0:00:05]} f6 {[%emt 0:03:52]} 27. g4 {[%emt 0:06:03]} Ne5 {[%emt 0:00:47]} 28. Bxe5 {[%emt 0:00:45]} Re7 {[%emt 0:01:25]} 29. Re2 {[%emt 0:02:01]} Rxe5 {[%emt 0:01:32]} 30. Rxe5 {[%emt 0:00:05]} fxe5 {[%emt 0:00:36]} 31. h4 {[%emt 0:00:32]} b5 {[%emt 0:09:11]} 32. cxb5 {[%emt 0:03:13]} Qb6 {[%emt 0:00:41]} 33. Qf1 {[%emt 0:02:06]} Nd3+ {[%emt 0:01:13]} 34. Kh2 {[%emt 0:02:12]} Nf4 {[%emt 0:00:04]} 35. Be4 {[%emt 0:02:23]} Qe3 {[%emt 0:00:36]} 36. Bg2 {[%emt 0:00:36]} Qd2 {[%emt 0:00:42]} 37. g5 {[%emt 0:00:49]} e4 {[%emt 0:00:48]} 38. a4 {[%emt 0:01:22]} Nxg2 {[%emt 0:00:47]} 39. Kg3 {[%emt 0:02:42]} Ne3 {[%emt 0:01:09]} 40. Qh3 {[%emt 0:01:11]} Nc4 {[%emt 0:01:32]} 41. Qg4 {[%emt 0:30:36]} Qe1+ {[%emt 0:30:25]} 42. Kh2 {[%emt 0:00:19]} Ne5 {[%emt 0:00:00]} 43. Qh5 {[%emt 0:00:00]} g6 {[%emt 0:00:00]} 0-1

[Event "SVK Extraliga 2019-20"]
[Site "Slovakia"]
[Date "2019.10.19"]
[Round "1.4"]
[White "Malinovsky, Karel"]
[Black "Motuz, Karol"]
[Result "1/2-1/2"]
[ECO "C60"]
[WhiteElo "2478"]
[BlackElo "2359"]
[Annotator "ChessBase"]
[PlyCount "89"]
[EventDate "2019.10.19"]
[EventType "team-tourn"]
[EventCountry "SVK"]
[SourceTitle "playchess.com"]
[Source "ChessBase"]
[SourceQuality "1"]
[WhiteTeam "Slovan"]
[BlackTeam "Dubnica"]
[TimeControl "40/5400+30:1800+30"]

1. e4 {[%emt 0:00:00]} e5 {[%emt 0:00:00]} 2. Nf3 {[%emt 0:00:00]} Nc6 {[%emt 0:00:00]} 3. Bb5 {[%emt 0:00:00]} a6 {[%emt 0:00:11]} 4. Ba4 {[%emt 0:00:00]} Nf6 {[%emt 0:00:31]} 5. O-O {[%emt 0:00:05]} Nxe4 {[%emt 0:01:25]} 6. d4 {[%emt 0:00:15]} b5 {[%emt 0:00:15]} 7. Bb3 {[%emt 0:00:09]} d5 {[%emt 0:00:17]} 8. dxe5 {[%emt 0:00:17]} Be6 {[%emt 0:00:11]} 9. Nbd2 {[%emt 0:01:09]} Nc5 {[%emt 0:01:35]} 10. c3 {[%emt 0:04:14]} Be7 {[%emt 0:01:11]} 11. Bc2 {[%emt 0:01:37]} d4 {[%emt 0:01:36]} 12. Nb3 {[%emt 0:01:50]} d3 {[%emt 0:02:05]} 13. Nxc5 {[%emt 0:03:57]} dxc2 {[%emt 0:00:34]} 14. Qxd8+ {[%emt 0:00:13]} Rxd8 {[%emt 0:00:04]} 15. Nxe6 {[%emt 0:00:26]} fxe6 {[%emt 0:00:24]} 16. Be3 {[%emt 0:01:49]} Rd5 {[%emt 0:05:23]} 17. Rfc1 {[%emt 0:02:31]} Nxe5 {[%emt 0:05:32]} 18. Nxe5 {[%emt 0:01:36]} Rxe5 {[%emt 0:00:03]} 19. Rxc2 {[%emt 0:00:13]} Kf7 {[%emt 0:01:39]} 20. c4 {[%emt 0:02:21]} b4 {[%emt 0:01:42]} 21. Rd1 {[%emt 0:02:22]} Rd8 {[%emt 0:08:13]} 22. Rxd8 {[%emt 0:00:09]} Bxd8 {[%emt 0:00:02]} 23. Kf1 {[%emt 0:00:26]} Bg5 {[%emt 0:03:54]} 24. Ba7 {[%emt 0:00:52]} Ra5 {[%emt 0:18:09]} 25. b3 {[%emt 0:01:32]} Ra3 {[%emt 0:02:00]} 26. f4 {[%emt 0:08:42]} Be7 {[%emt 0:07:14]} 27. Be3 {[%emt 0:08:19]} Ra5 {[%emt 0:03:36]} 28. Ke2 {[%emt 0:01:58]} Rh5 {[%emt 0:02:14]} 29. h3 {[%emt 0:02:01]} e5 {[%emt 0:11:16]} 30. Rd2 {[%emt 0:17:38]} exf4 {[%emt 0:06:14]} 31. Bxf4 {[%emt 0:00:12]} c6 {[%emt 0:00:35]} 32. Kf3 {[%emt 0:11:03]} Ke6 {[%emt 0:04:35]} 33. Re2+ {[%emt 0:04:41]} Kd7 {[%emt 0:00:53]} 34. Re5 {[%emt 0:04:59]} Rxe5 {[%emt 0:01:05]} 35. Bxe5 {[%emt 0:00:06]} g6 {[%emt 0:00:40]} 36. Ke4 {[%emt 0:00:13]} Ke6 {[%emt 0:00:27]} 37. Bd4 {[%emt 0:01:11]} c5 {[%emt 0:08:37]} 38. Be3 {[%emt 0:01:30]} Bf8 {[%emt 0:00:45]} 39. Bc1 {[%emt 0:00:31]} Bd6 {[%emt 0:01:39]} 40. a3 {[%emt 0:02:12]} bxa3 {[%emt 0:01:52]} 41. Bxa3 {[%emt 0:30:53]} h5 {[%emt 0:31:17]} 42. Bc1 {[%emt 0:00:52]} Bf8 {[%emt 0:00:00]} 43. Bf4 {[%emt 0:00:00]} Be7 {[%emt 0:00:00]} 44. g4 {[%emt 0:00:00]} hxg4 {[%emt 0:00:00]} 45. hxg4 {[%emt 0:00:00] Ke5+} 1/2-1/2

[Event "SVK Extraliga 2019-20"]
[Site "Slovakia"]
[Date "2019.10.19"]
[Round "1.4"]
[White "Mrva, Martin"]
[Black "Bagi, Mate"]
[Result "0-1"]
[ECO "C55"]
[WhiteElo "2401"]
[BlackElo "2461"]
[Annotator "ChessBase"]
[PlyCount "126"]
[EventDate "2019.10.19"]
[EventType "team-tourn"]
[EventCountry "SVK"]
[SourceTitle "playchess.com"]
[Source "ChessBase"]
[SourceQuality "1"]
[WhiteTeam "Humenne"]
[BlackTeam "Streda"]
[TimeControl "40/5400+30:1800+30"]

1. e4 {[%emt 0:00:00]} e5 {[%emt 0:00:00]} 2. Nf3 {[%emt 0:00:00]} Nc6 {[%emt 0:00:00]} 3. Bc4 {[%emt 0:00:32]} Nf6 {[%emt 0:00:34]} 4. d3 {[%emt 0:00:10]} h6 {[%emt 0:03:02]} 5. Nc3 {[%emt 0:08:16]} d6 {[%emt 0:03:16]} 6. a4 {[%emt 0:04:27]} g5 {[%emt 0:04:28]} 7. Nd5 {[%emt 0:06:20]} Bg7 {[%emt 0:04:46]} 8. h4 {[%emt 0:09:00]} g4 {[%emt 0:25:58]} 9. Nh2 {[%emt 0:06:31]} Nxd5 {[%emt 0:06:22]} 10. exd5 {[%emt 0:02:03]} Ne7 {[%emt 0:03:10]} 11. Nxg4 {[%emt 0:01:29]} f5 {[%emt 0:01:57]} 12. Nh2 {[%emt 0:07:06]} O-O {[%emt 0:00:37]} 13. d4 {[%emt 0:11:43]} e4 {[%emt 0:05:00]} 14. g3 {[%emt 0:01:04]} Qe8 {[%emt 0:09:08]} 15. c3 {[%emt 0:07:07]} Qf7 {[%emt 0:02:02]} 16. Qb3 {[%emt 0:01:54]} b6 {[%emt 0:02:28]} 17. Nf1 {[%emt 0:12:32]} Bb7 {[%emt 0:02:04]} 18. Ne3 {[%emt 0:00:25]} f4 {[%emt 0:00:47]} 19. gxf4 {[%emt 0:00:11]} Qxf4 {[%emt 0:00:40]} 20. Qc2 {[%emt 0:00:24]} Ng6 {[%emt 0:04:02]} 21. Rg1 {[%emt 0:03:48]} Qf7 {[%emt 0:08:37]} 22. Ng4 {[%emt 0:01:35]} Kh7 {[%emt 0:01:07]} 23. Be3 {[%emt 0:06:21]} Bxd5 {[%emt 0:00:31]} 24. Bxd5 {[%emt 0:01:51]} Qxd5 {[%emt 0:00:05]} 25. O-O-O {[%emt 0:01:00]} Rae8 {[%emt 0:03:09]} 26. Rg3 {[%emt 0:00:38]} Nf4 {[%emt 0:02:57]} 27. Rdg1 {[%emt 0:00:22]} Nh5 {[%emt 0:00:42]} 28. R3g2 {[%emt 0:00:25]} Rf7 {[%emt 0:01:49]} 29. Kb1 {[%emt 0:02:54]} Qf5 {[%emt 0:00:29]} 30. Nh2 {[%emt 0:01:30]} c5 {[%emt 0:01:30]} 31. Nf1 {[%emt 0:00:23]} cxd4 {[%emt 0:00:54]} 32. cxd4 {[%emt 0:00:14]} Rc8 {[%emt 0:00:27]} 33. Qb3 {[%emt 0:00:07]} d5 {[%emt 0:00:42]} 34. Ka2 {[%emt 0:00:35]} Rc6 {[%emt 0:00:36]} 35. Nd2 {[%emt 0:01:07]} Rfc7 {[%emt 0:01:18]} 36. Nb1 {[%emt 0:00:22]} Rc4 {[%emt 0:00:26]} 37. Nc3 {[%emt 0:00:10]} Rd7 {[%emt 0:01:20]} 38. Qd1 {[%emt 0:01:35]} Qf3 {[%emt 0:01:00]} 39. Qxf3 {[%emt 0:01:11]} exf3 {[%emt 0:00:05]} 40. Rg4 {[%emt 0:00:05]} Rc6 {[%emt 0:01:07]} 41. Kb3 {[%emt 0:30:29]} Rf6 {[%emt 0:03:54]} 42. Kc2 {[%emt 0:00:00]} Rf5 {[%emt 0:00:27]} 43. Kd3 {[%emt 0:00:00]} Bf6 {[%emt 0:01:58]} 44. Rh1 {[%emt 0:00:00]} a6 {[%emt 0:04:59]} 45. Rhg1 {[%emt 0:00:00]} Rf7 {[%emt 0:01:48]} 46. Nb1 {[%emt 0:00:00]} Bg7 {[%emt 0:02:04]} 47. Nc3 {[%emt 0:00:00]} Rb7 {[%emt 0:03:59]} 48. Kc2 {[%emt 0:00:00]} Rc7 {[%emt 0:00:44]} 49. Kb3 {[%emt 0:00:00]} Rcf7 {[%emt 0:01:06]} 50. Rg6 {[%emt 0:00:00]} R7f6 {[%emt 0:00:47]} 51. R6g4 {[%emt 0:00:00]} Re6 {[%emt 0:00:35]} 52. Na2 {[%emt 0:00:00]} Bh8 {[%emt 0:02:00]} 53. Nb4 {[%emt 0:00:00]} Nf6 {[%emt 0:00:35]} 54. R4g3 {[%emt 0:00:00]} Rxe3+ {[%emt 0:01:01]} 55. fxe3 {[%emt 0:00:00]} f2 {[%emt 0:00:06]} 56. Nxa6 {[%emt 0:00:00]} Rf3 {[%emt 0:01:57]} 57. Rf1 {[%emt 0:01:42]} Rxg3 {[%emt 0:00:09]} 58. Rxf2 {[%emt 0:00:04]} Rxe3+ {[%emt 0:00:06]} 59. Kb4 {[%emt 0:00:11]} Ne4 {[%emt 0:01:27]} 60. Rf5 {[%emt 0:00:51]} Bxd4 {[%emt 0:00:13]} 61. Rxd5 {[%emt 0:00:19]} Bxb2 {[%emt 0:00:29]} 62. h5 {[%emt 0:00:14]} Nf6 {[%emt 0:00:32]} 63. Rd6 {[%emt 0:00:58]} Ba3+ {[%emt 0:00:05]} 0-1

[Event "SVK Extraliga 2019-20"]
[Site "Slovakia"]
[Date "2019.10.19"]
[Round "1.4"]
[White "Hausner, Ivan"]
[Black "Smolen, Jan"]
[Result "1/2-1/2"]
[ECO "D30"]
[WhiteElo "2382"]
[BlackElo "2419"]
[Annotator "RC"]
[PlyCount "32"]
[EventDate "2019.10.19"]
[EventType "team-tourn"]
[EventCountry "SVK"]
[SourceTitle "playchess.com"]
[Source "ChessBase"]
[SourceQuality "1"]
[WhiteTeam "Liptovska"]
[BlackTeam "Dunajov"]
[TimeControl "40/5400+30:1800+30"]

1. d4 {[%emt 0:00:00]} d5 {[%emt 0:00:00]} 2. c4 {[%emt 0:00:00]} e6 {[%emt 0:00:00]} 3. Nf3 {[%emt 0:00:00]} c6 {[%emt 0:00:00]} 4. g3 {[%emt 0:00:00]} dxc4 {[%emt 0:00:21]} 5. Bg2 {[%emt 0:00:06]} b5 {[%emt 0:00:09]} 6. a4 {[%emt 0:00:18]} Bb7 {[%emt 0:00:47]} 7. Ne5 {[%emt 0:00:07]} a6 {[%emt 0:01:29]} 8. Nc3 {[%emt 0:00:14]} Bb4 {[%emt 0:02:12]} 9. O-O {[%emt 0:00:08]} Nf6 {[%emt 0:01:00]} 10. axb5 {[%emt 0:00:29]} axb5 {[%emt 0:00:05]} 11. Rxa8 {[%emt 0:00:08]} Bxa8 {[%emt 0:00:03]} 12. Nxb5 {[%emt 0:00:46]} cxb5 {[%emt 0:00:12]} 13. Bxa8 {[%emt 0:00:01]} O-O {[%emt 0:01:01]} 14. Bf3 {[%emt 0:01:57]} Qb6 {[%emt 0:07:23]} 15. Bg5 Nfd7 16. Nxd7 Nxd7 1/2-1/2